bitfinex/quotes_ETHUSD_20250620
["timestamp","ask_amount","ask_price","bid_price","bid_amount"]
[1750431081945,0.8043,2499.8,2499.5,4.00070939]
[1750431082139,7.577,2499.9,2499.3,6.76057218]
[1750431082481,12.35574112,2500.1,2499.4,4.00091575]
[1750431082641,0.03995719,2499.9,2499.5,4.00070468]
[1750431082841,0.03995719,2499.9,2499.5,4.00068978]
[1750431083037,0.03995719,2499.9,2499.6,4.00059697]
[1750431083243,30.0,2500.3,2499.9,4.00004394]
[1750431083467,4.03974789,2500.2,2499.7,4.00044661]
[1750431083634,0.03995719,2500.2,2499.8,4.00029637]
[1750431083981,4.03966726,2500.2,2499.7,4.00037824]
[1750431084140,0.03995719,2500.2,2499.6,4.8006433]
[1750431084345,0.03995719,2500.2,2499.8,4.00029596]
[1750431084646,0.03995719,2500.2,2499.3,3.18310721]
[1750431084864,0.7914,2500.9,2499.6,0.7664]
[1750431085039,0.03995719,2500.9,2499.8,4.00032002]
[1750431085239,0.03995719,2500.9,2500.5,3.99911413]
[1750431085574,3.99876759,2500.8,2500.3,3.9994911]
[1750431085734,4.78935266,2501.3,2500.3,3.99945326]
[1750431085934,4.78935266,2501.3,2499.9,4.40409184]
[1750431085935,3.1234,2501.3,2500.4,0.03999181]
[1750431086175,0.03995719,2501.2,2499.9,0.40403162]
[1750431086353,3.99840667,2501.0,2500.0,4.0]
[1750431086557,7.59995719,2501.2,2500.1,0.44040316]
[1750431086558,0.03995719,2500.9,2500.1,0.44040316]
[1750431086841,10.0,2501.0,2500.3,3.99945352]
[1750431087052,0.8102,2500.8,2499.3,0.85110721]
[1750431087265,14.04098354,2500.0,2499.1,2.60123967]
[1750431087487,18.4752,2500.3,2499.2,0.30013346]
[1750431087798,10.8102,2500.7,2500.1,3.99982349]
[1750431087957,10.8102,2500.7,2500.2,3.99963517]
[1750431088153,3.99921274,2500.5,2499.6,10.003]
[1750431088354,0.03995719,2500.6,2499.4,0.7542]
[1750431088355,0.03995719,2500.4,2499.4,0.7542]
[1750431088591,4.00011516,2500.0,2499.4,0.7542]
[1750431088860,0.03995719,2499.9,2499.4,4.75507811]
[1750431089596,0.03995719,2500.0,2499.6,4.00058342]
[1750431089905,0.03995719,2500.2,2499.4,4.75514337]
[1750431090217,3.99985231,2500.1,2499.6,4.00053388]
[1750431090501,4.00032002,2499.8,2499.1,2.60123967]
[1750431090652,4.00071467,2499.6,2499.1,6.60258817]
[1750431090857,4.00103907,2499.4,2499.1,2.60123967]
[1750431091080,4.04099626,2499.4,2499.1,2.60123967]
[1750431091275,4.00112724,2499.3,2499.1,2.60123967]
[1750431091698,4.04123759,2499.2,2499.1,2.60123967]
[1750431091859,4.00123486,2499.3,2499.1,2.60123967]
[1750431092189,0.03995719,2499.3,2499.1,2.60123967]
[1750431092395,4.0012804,2499.2,2499.1,2.60123967]
[1750431092713,4.00104436,2499.4,2499.1,2.60123967]
[1750431092863,4.00103408,2499.4,2499.1,2.60123967]
[1750431093190,4.04108709,2499.3,2499.1,2.60123967]
[1750431093393,4.7522804,2499.2,2499.1,2.60123967]
[1750431093809,14.7522804,2499.2,2499.1,2.60123967]
[1750431093972,45.32713177,2499.2,2499.1,2.60123967]
[1750431094174,44.96784966,2499.2,2499.1,2.60123967]
[1750431094397,45.5234046,2499.2,2499.1,2.60123967]
[1750431094780,45.32712605,2499.2,2499.1,2.60123967]
[1750431095525,45.32737576,2499.2,2499.1,2.60123967]
[1750431095879,68.5511593,2499.2,2499.1,2.60123967]
[1750431096080,25.31937576,2499.2,2499.1,2.60123967]
[1750431096411,2.6924347,2499.2,2499.1,2.60123967]
[1750431096625,7.69795719,2499.2,2499.1,2.60123967]
[1750431096781,0.03995719,2499.2,2499.1,2.60123967]
[1750431096977,4.0012804,2499.2,2499.1,3.05743802]
[1750431097211,4.04123759,2499.2,2499.1,2.60123967]
[1750431097932,14.02723759,2499.2,2499.1,2.60123967]
[1750431098098,13.9872804,2499.2,2499.1,2.60123967]
[1750431098299,14.34387645,2499.2,2499.1,2.60123967]
[1750431098510,4.57686527,2499.2,2499.1,2.60123967]
[1750431098711,14.23622641,2499.2,2499.1,2.60123967]
[1750431099001,0.35995854,2499.2,2499.1,2.60123967]
[1750431099200,0.03995719,2499.3,2499.1,3.05743802]
[1750431099529,4.00103691,2499.4,2499.1,3.05743802]
[1750431099746,4.04107836,2499.3,2499.1,3.05743802]
[1750431099952,4.36177668,2499.2,2499.1,2.60123967]
[1750431100149,0.36049784,2499.2,2499.1,2.60123967]
[1750431100302,4.36177824,2499.2,2499.1,2.60123967]
[1750431100503,0.36088571,2499.2,2499.1,2.60123967]
[1750431101117,4.36216611,2499.2,2499.1,2.60123967]
[1750431101410,0.36064447,2499.2,2499.1,3.88193802]
[1750431101799,4.36191687,2499.2,2499.1,2.60123967]
[1750431102005,0.36063647,2499.2,2499.1,2.60123967]
[1750431102242,0.36061445,2499.2,2499.1,2.60123967]
[1750431102605,0.36063127,2499.2,2499.1,6.60268018]
[1750431102811,40.0,2500.3,2499.9,4.00002979]
[1750431103005,0.57716062,2500.2,2500.1,3.99984]
[1750431103250,0.36072539,2500.2,2500.1,3.99984]
[1750431103432,40.0,2500.3,2500.1,3.99972975]
[1750431103620,40.0,2500.3,2500.2,3.99968002]
[1750431103951,40.36065647,2500.3,2500.0,0.7574]
[1750431104148,4.00040451,2499.8,2499.3,4.00109613]
[1750431104350,4.00074651,2499.6,2499.3,1.14007726]
[1750431104538,0.03995719,2499.8,2499.3,1.14007726]
[1750431104713,4.00055969,2499.7,2499.2,4.79820803]
[1750431104914,7.65695719,2499.8,2499.2,0.797]
[1750431105115,0.74633303,2499.7,2499.1,2.60123967]
[1750431105310,4.0010789,2499.4,2499.1,2.60123967]
[1750431105511,0.03995719,2499.6,2499.1,2.60123967]
[1750431105855,0.03995719,2499.8,2499.3,0.7778]
[1750431106042,10.25631699,2500.2,2499.7,4.00033905]
[1750431106236,0.57695985,2500.1,2499.9,4.00007401]
[1750431106547,10.0,2500.2,2499.6,4.00060215]
[1750431106548,13.99969084,2500.2,2499.6,4.00060215]
[1750431106850,4.00009323,2500.0,2499.5,4.00072053]
[1750431107028,4.00009323,2500.0,2499.3,0.7778]
[1750431107029,0.03995719,2500.0,2499.3,0.7778]
[1750431107230,0.03995719,2500.0,2499.3,4.77880472]
[1750431107415,4.04004734,2500.0,2499.5,4.0007269]
[1750431107751,11.59875336,2500.2,2499.7,4.0004065]
[1750431107941,40.0,2500.3,2499.3,4.77888113]
[1750431107942,3.99986891,2500.1,2499.6,4.00057147]
[1750431108144,13.27074073,2500.2,2499.3,0.7778]
[1750431108343,4.03994375,2500.1,2499.6,4.00059669]
[1750431108548,0.03995719,2500.1,2499.7,4.00040365]
[1750431108721,4.03983806,2500.1,2499.6,4.00056297]
[1750431108919,43.99961417,2500.3,2499.4,4.00096023]
[1750431108920,40.0,2500.3,2499.4,4.00096023]
[1750431109121,40.0,2500.3,2499.5,0.47787602]
[1750431109331,40.0,2500.3,2500.0,3.99998784]
[1750431109534,40.0,2500.3,2499.5,4.47864575]
[1750431109535,40.0,2500.3,2499.9,4.75079538]
[1750431109731,40.0,2500.3,2500.0,3.99990859]
[1750431109931,40.0,2500.3,2500.1,3.99981085]
[1750431110226,40.0,2500.3,2499.9,0.7507]
[1750431110422,40.0,2500.3,2499.9,5.22591324]
[1750431110752,40.0,2500.3,2500.1,3.99976468]
[1750431110960,7.61795719,2500.2,2499.6,0.8121]
[1750431111257,7.61795719,2500.2,2499.2,0.26412517]
[1750431111258,4.00071229,2499.6,2499.2,1.07622517]
[1750431111457,7.579,2499.8,2499.2,5.07748041]
[1750431111757,7.576,2499.8,2499.6,4.00062942]
[1750431111953,7.573,2499.9,2499.6,4.00062942]
[1750431112161,10.0,2500.1,2499.7,4.00048005]
[1750431112380,7.572,2500.0,2499.3,0.76787201]
[1750431112554,4.00017791,2499.9,2499.5,4.0006826]
[1750431112871,7.568,2500.1,2499.2,5.07745856]
[1750431113079,0.03995719,2500.1,2499.4,4.00096023]
[1750431113281,40.0,2500.3,2500.0,0.7901]
[1750431113439,40.0,2500.3,2500.1,3.99970932]
[1750431113640,40.0,2500.3,2500.1,3.99977146]
[1750431113940,40.0,2500.3,2500.2,3.99968002]
[1750431114140,40.0,2500.3,2500.2,4.83987234]
[1750431114340,40.0,2500.3,2500.2,4.79988002]
[1750431114542,0.3857,2501.4,2500.2,4.79988002]
[1750431114543,0.8209,2502.0,2500.4,3.9993601]
[1750431114855,22.83878354,2502.3,2500.2,0.58998817]
[1750431114856,7.578,2502.1,2501.4,0.818]
[1750431115041,7.578,2502.1,2501.5,0.03996973]
[1750431115241,0.03995719,2502.2,2501.9,3.99683799]
[1750431115478,3.99610677,2502.5,2501.8,3.99711463]
[1750431115686,1.64099234,2503.0,2502.2,3.99647145]
[1750431115883,13.23078354,2502.3,2501.8,3.997009]
[1750431116083,3.99604636,2502.5,2501.4,0.818]
[1750431116283,0.03995719,2502.4,2501.9,3.99693974]
[1750431116445,7.573,2502.6,2502.2,3.99636417]
[1750431116646,13.23078354,2502.3,2501.7,3.99719206]
[1750431116967,11.6094567,2502.2,2501.6,0.8244]
[1750431117168,4.03663619,2502.1,2501.6,0.8244]
[1750431117352,0.03995719,2502.1,2501.6,0.8244]
[1750431117788,0.03995719,2502.2,2501.6,4.82181754]
[1750431117951,3.99691746,2502.0,2501.6,0.8244]
[1750431118279,11.56071491,2502.1,2501.6,0.8244]
[1750431118647,3.99683272,2502.0,2501.6,0.8244]
[1750431118875,3.99680255,2502.0,2501.6,0.8244]
[1750431119086,13.23078354,2501.9,2501.2,0.7566]
[1750431119270,13.23078354,2501.5,2500.8,0.801]
[1750431119458,3.99792108,2501.3,2500.8,0.801]
[1750431119659,3.99849309,2501.0,2500.5,0.801]
[1750431119861,3.9987314,2500.8,2500.1,4.39976545]
[1750431120060,11.55357366,2500.9,2500.4,3.99920847]
[1750431120262,7.555,2500.9,2500.2,0.801]
[1750431120872,3.99888031,2500.7,2500.2,0.801]
[1750431121189,4.03890418,2500.7,2500.2,4.80067929]
[1750431121390,4.77036253,2501.2,2500.2,1.68106524]
[1750431121558,13.99746163,2501.6,2501.1,3.99820215]
[1750431121753,1.07183426,2502.0,2501.5,3.99748279]
[1750431121971,8.61783426,2502.0,2501.2,0.8034]
[1750431122174,7.546,2502.0,2501.6,3.99735971]
[1750431122457,7.546,2502.0,2501.7,3.99715989]
[1750431122675,0.03995719,2502.1,2501.5,3.99760143]
[1750431122876,7.543,2502.4,2501.9,3.99680526]
[1750431123188,1.40518835,2502.4,2502.0,0.03996466]
[1750431123393,4.81682191,2502.7,2502.0,0.03996466]
[1750431123394,7.541,2502.6,2502.0,0.03996466]
[1750431123691,17.143,2502.8,2502.2,0.8034]
[1750431123988,17.143,2502.8,2502.3,3.99632121]
[1750431123989,34.36938448,2502.8,2502.3,3.99632121]
[1750431124191,34.32705586,2502.8,2502.2,0.8034]
[1750431124488,10.03995719,2502.7,2501.9,0.8034]
[1750431124690,13.23078354,2502.4,2501.9,0.8034]
[1750431124898,3.99665073,2502.1,2501.6,3.99738189]
[1750431125393,0.03995719,2502.2,2501.4,3.99772275]
[1750431125591,3.99670404,2502.1,2501.6,3.99736672]
[1750431125791,3.99745365,2501.6,2501.1,0.7549]
[1750431125964,0.03995719,2501.5,2501.1,0.7549]
[1750431126291,13.23078354,2501.2,2500.4,0.7549]
[1750431126489,3.99842357,2501.0,2500.5,3.9991179]
[1750431126676,0.03995719,2501.0,2500.4,0.7549]
[1750431126877,3.99856051,2500.9,2500.1,0.7549]
[1750431127076,0.03995719,2500.8,2500.1,0.7549]
[1750431127296,11.52957392,2500.9,2500.4,3.99929217]
[1750431127466,7.531,2500.9,2500.5,3.99919493]
[1750431127669,0.03995719,2500.9,2500.5,3.99918056]
[1750431127868,11.57053029,2500.9,2500.4,3.99924786]
[1750431128081,7.532,2500.9,2500.5,3.99916316]
[1750431128268,7.526,2500.9,2500.7,3.9988454]
[1750431128497,3.99900168,2500.7,2499.7,4.79791314]
[1750431128671,10.0,2500.8,2499.9,4.00012369]
[1750431128968,10.0,2500.8,2500.0,0.7812]
[1750431129355,7.526,2500.9,2500.2,3.99968002]
[1750431129557,7.526,2500.9,2500.7,3.99880071]
[1750431129759,7.526,2500.9,2500.4,3.9993601]
[1750431129983,7.526,2500.9,2500.6,3.99894029]
[1750431130171,7.55695719,2501.0,2500.3,0.399968]
[1750431130385,7.55695719,2501.0,2500.6,3.99896099]
[1750431130581,7.55695719,2501.0,2500.7,3.99874255]
[1750431130899,7.515,2501.0,2500.7,3.99883816]
[1750431131100,11.51349446,2501.0,2500.4,3.99920311]
[1750431131286,13.23078354,2500.7,2500.4,3.99927017]
[1750431131664,13.23078354,2501.0,2500.0,0.7812]
[1750431131864,7.504,2501.0,2500.7,3.99880374]
[1750431132064,7.54395719,2501.0,2500.1,3.99984]
[1750431132286,20.77474073,2501.0,2500.0,0.7812]
[1750431132488,20.73478354,2501.0,2500.1,3.99984]
[1750431132701,7.501,2501.0,2500.3,3.99952005]
[1750431133003,0.8311,2501.1,2500.8,3.99860402]
[1750431133201,0.8311,2501.1,2500.5,3.99910171]
[1750431133370,0.8311,2501.1,2500.7,3.99875332]
[1750431133566,0.8311,2501.1,2500.6,3.99895774]
[1750431133801,0.03995719,2501.0,2500.2,4.51775795]
[1750431134002,20.72578354,2501.2,2500.8,3.9986362]
[1750431134181,20.72578354,2501.2,2500.8,3.99863326]
[1750431134583,24.72388614,2501.2,2500.8,3.99863326]
[1750431134786,24.72388614,2501.2,2500.7,4.03878186]
[1750431134993,13.23078354,2500.8,2500.6,3.99893183]
[1750431135189,13.23078354,2500.8,2500.7,3.99888031]
[1750431135392,7.483,2501.1,2500.8,3.99864652]
[1750431135623,11.48131425,2501.1,2500.5,4.39864408]
[1750431135933,7.483,2501.1,2500.7,3.99885828]
[1750431136215,7.52295719,2501.1,2500.8,3.99870935]
[1750431136527,7.483,2501.1,2500.5,4.4841914]
[1750431136673,7.483,2501.1,2500.7,3.99886095]
[1750431137024,13.23078354,2500.8,2500.5,0.39077506]
[1750431137227,0.03995719,2500.7,2500.2,3.99957665]
[1750431137377,0.03995719,2500.7,2500.3,3.99951694]
[1750431137578,21.51838354,2500.8,2500.2,0.87805024]
[1750431137813,14.04738354,2500.8,2500.0,0.7812]
[1750431138086,0.8166,2501.4,2500.9,3.99842975]
[1750431138296,0.8166,2501.4,2500.6,3.99888046]
[1750431138297,0.8166,2501.4,2500.6,3.99904023]
[1750431138480,0.8166,2501.4,2501.1,3.99821989]
[1750431138889,12.37695719,2501.6,2501.1,3.99815633]
[1750431139117,12.37695719,2501.6,2501.2,3.9979363]
[1750431139118,12.337,2501.6,2501.2,3.9979363]
[1750431139420,0.03995719,2501.5,2500.5,0.40330067]
[1750431139590,0.03995719,2501.5,2500.2,9.803]
[1750431139591,7.47,2501.5,2501.2,3.9980792]
[1750431139793,7.50995719,2501.5,2501.1,3.99815096]
[1750431139986,7.50995719,2501.5,2501.0,3.99833041]
[1750431139987,13.23078354,2501.2,2501.0,3.99833041]
[1750431140385,13.23078354,2501.2,2500.9,3.99849578]
[1750431140579,13.23078354,2501.2,2500.5,0.40924462]
[1750431140787,13.23078354,2501.2,2500.1,3.99977165]
[1750431140788,3.99912538,2500.6,2500.1,3.99977165]
[1750431140980,3.99912538,2500.6,2500.0,3.99992344]
[1750431140981,13.23078354,2500.4,2500.0,3.99992344]
[1750431141186,13.23078354,2500.4,2500.3,3.99952005]
[1750431141423,7.463,2500.6,2500.4,3.99934474]
[1750431141738,7.463,2500.6,2500.0,3.99996096]
[1750431141884,7.463,2500.6,2500.1,0.4772061]
[1750431142209,7.463,2500.6,2500.2,3.99961434]
[1750431142514,0.85755719,2500.5,2500.1,3.99973228]
[1750431142721,13.23078354,2500.8,2500.4,3.9993601]
[1750431143016,7.454,2500.8,2500.5,0.03999223]
[1750431143223,17.455,2501.1,2500.8,3.99863826]
[1750431143397,20.68578354,2501.2,2501.0,3.9983635]
[1750431143718,10.0,2501.1,2501.0,3.9983635]
[1750431143882,13.99824262,2501.1,2500.5,0.7663]
[1750431144078,10.0,2501.1,2500.8,3.99862753]
[1750431144339,10.0,2501.1,2500.9,3.99849102]
[1750431144633,10.0,2501.1,2500.8,3.99863303]
[1750431144917,0.03995719,2501.0,2500.2,0.7718]
[1750431145117,13.23078354,2500.8,2500.2,0.7718]
[1750431145316,13.23078354,2500.8,2500.5,3.99913419]
[1750431145615,13.23078354,2500.8,2500.7,3.99888031]
[1750431145917,23.23078354,2501.2,2500.8,3.99871831]
[1750431146124,0.03995719,2501.1,2500.8,3.99871831]
[1750431146509,0.03995719,2501.1,2500.8,3.99865394]
[1750431147035,10.0,2501.2,2501.1,3.99824077]
[1750431147182,7.432,2501.5,2501.3,3.997897]
[1750431147406,7.433,2501.5,2500.8,0.8136]
[1750431147640,7.433,2501.5,2500.9,0.03997902]
[1750431147943,17.47295719,2501.5,2501.1,3.99812781]
[1750431148243,17.433,2501.5,2501.2,3.9980669]
[1750431148444,17.433,2501.5,2501.1,3.99822893]
[1750431148631,17.433,2501.5,2501.2,3.99800512]
[1750431149143,17.433,2501.5,2501.1,3.99815625]
[1750431149377,11.4075106,2501.2,2500.9,3.99846701]
[1750431149660,11.4075106,2501.2,2501.0,3.99839123]
[1750431149859,11.4075106,2501.2,2501.1,3.99824077]
[1750431150365,7.416,2501.3,2501.2,3.99808092]
[1750431151323,7.416,2501.3,2501.0,3.99824637]
[1750431151527,7.416,2501.3,2501.1,3.99822428]
[1750431152029,11.4075106,2501.5,2501.2,3.99807749]
[1750431152229,10.0,2501.4,2501.1,3.998174]
[1750431153045,0.03995719,2501.3,2500.8,0.8136]
[1750431153360,10.0,2501.4,2500.8,4.81230913]
[1750431153669,10.0,2501.4,2501.1,3.998163]
[1750431153853,10.0,2501.4,2501.0,3.99830452]
[1750431154050,13.99777909,2501.4,2500.9,0.48123091]
[1750431154389,10.7722,2501.0,2500.1,0.8163]
[1750431154679,10.0,2501.0,2500.6,3.99890309]
[1750431154865,7.382,2500.9,2500.6,3.99890309]
[1750431155063,3.99871804,2500.9,2500.2,3.99968002]
[1750431155264,10.0,2501.0,2500.7,3.99888031]
[1750431155627,21.0525106,2501.1,2500.3,4.48108297]
[1750431155628,10.0,2501.1,2500.3,0.481598]
[1750431155864,10.0,2501.1,2500.7,3.99873706]
[1750431156259,0.03995719,2501.0,2500.5,0.40659968]
[1750431156562,21.4075106,2501.1,2500.8,3.99856751]
[1750431156859,21.4075106,2501.1,2500.8,3.9987035]
[1750431157309,21.4075106,2501.1,2500.7,3.99881418]
[1750431157435,3.99865227,2500.9,2500.5,0.39599562]
[1750431157762,3.99865227,2500.9,2500.5,3.99919311]
[1750431157967,4.03844209,2501.0,2500.5,3.99919311]
[1750431158263,10.0,2501.1,2500.6,0.03998671]
[1750431158433,10.0,2501.1,2500.8,3.99865391]
[1750431158625,17.37,2501.1,2500.7,3.99888031]
[1750431158832,17.37,2501.1,2500.8,3.99863204]
[1750431159030,17.37,2501.1,2500.8,3.99857206]
[1750431159231,7.37,2501.1,2500.9,3.99842217]
[1750431159729,3.0362,2501.3,2500.9,3.99842217]
[1750431159730,0.7722,2501.3,2500.9,0.83968657]
[1750431159934,21.35879162,2501.4,2501.0,3.99827988]
[1750431160135,10.0,2501.2,2500.9,3.99854184]
[1750431160361,10.0,2501.4,2501.1,3.99815305]
[1750431160547,13.99783724,2501.4,2500.9,3.9984912]
[1750431160742,10.0,2501.4,2501.0,3.99826656]
[1750431160974,10.0,2501.4,2500.9,3.99849269]
[1750431160975,3.99793635,2501.3,2500.9,3.99849269]
[1750431161161,0.03995719,2501.3,2500.9,3.9984772]
[1750431161363,10.0,2501.4,2501.1,3.99810311]
[1750431161567,10.0,2501.4,2501.2,3.99800641]
[1750431161763,10.0,2501.4,2501.0,3.99832662]
[1750431162082,10.0,2501.4,2501.3,3.99792108]
[1750431162247,0.7717,2501.6,2501.3,0.39979211]
[1750431162456,8.1187,2501.6,2501.3,3.9978233]
[1750431162676,0.8016,2501.9,2501.5,3.99751232]
[1750431162877,4.40421917,2502.9,2501.3,0.03997517]
[1750431162878,0.8016,2502.4,2501.6,0.03997039]
[1750431163062,0.8016,2502.4,2501.2,12.15845935]
[1750431163261,19.5531106,2502.7,2502.0,3.99669062]
[1750431163483,10.0,2502.5,2502.1,3.99656421]
[1750431163709,11.4075106,2502.3,2501.3,0.8145]
[1750431164004,0.794,2502.2,2501.5,3.99760143]
[1750431164147,11.34227279,2502.4,2501.9,3.99683699]
[1750431164448,7.346,2502.4,2502.0,3.99677724]
[1750431164787,7.38595719,2502.4,2501.9,3.99695521]
[1750431164947,11.38213025,2502.4,2501.8,3.99699944]
[1750431165147,3.99633933,2502.3,2501.9,3.99694977]
[1750431165586,3.99633933,2502.3,2501.8,4.39940447]
[1750431165756,7.346,2502.4,2501.9,3.99694193]
[1750431165961,11.38213027,2502.4,2502.0,3.99671747]
[1750431166161,7.346,2502.4,2501.9,3.99687518]
[1750431166392,11.4075106,2502.1,2501.3,0.8145]
[1750431166551,8.17695719,2502.0,2501.6,3.9973272]
[1750431166749,8.137,2502.0,2501.6,3.9973272]
[1750431166950,2.9522,2502.4,2501.9,3.99689109]
[1750431167189,10.0,2502.2,2502.0,3.99671682]
[1750431167694,10.0,2502.2,2501.4,3.99776125]
[1750431167985,7.324,2502.1,2501.7,3.99721288]
[1750431168490,11.4075106,2501.9,2501.6,3.99743637]
[1750431168689,8.13475719,2501.8,2501.2,3.99801345]
[1750431168867,11.4075106,2501.5,2501.1,3.99810868]
[1750431169065,22.72318188,2501.5,2501.1,0.87837093]
[1750431169280,22.72318188,2501.5,2500.6,2.181]
[1750431169281,4.03778499,2501.4,2500.9,3.99846479]
[1750431169454,4.03782074,2501.4,2500.9,3.99849263]
[1750431170061,3.99792286,2501.3,2500.8,3.99864951]
[1750431170481,4.03788005,2501.3,2500.8,3.99864951]
[1750431170676,0.03995719,2501.3,2500.6,0.7814]
[1750431170954,7.314,2501.2,2500.9,3.99844436]
[1750431171149,7.314,2501.2,2500.9,3.99853658]
[1750431171354,7.314,2501.2,2500.9,3.99847509]
[1750431171590,7.314,2501.2,2501.0,3.99838186]
[1750431171953,7.314,2501.2,2501.1,3.99824077]
[1750431172158,7.314,2501.2,2501.0,3.99831348]
[1750431172418,7.314,2501.2,2501.1,3.99824077]
[1750431172632,9.487,2501.4,2501.2,3.99799404]
[1750431172997,9.487,2501.4,2501.1,3.99820774]
[1750431173297,9.487,2501.4,2501.2,3.99805921]
[1750431173503,9.487,2501.4,2501.0,3.99829675]
[1750431173820,9.487,2501.4,2501.0,0.79968478]
[1750431174120,15.40586302,2501.1,2500.6,3.99897074]
[1750431174318,11.4075106,2501.1,2500.7,3.99886584]
[1750431174522,11.4075106,2501.1,2500.7,4.43946431]
[1750431174815,10.03995719,2501.0,2499.6,0.7623]
[1750431175016,4.03858413,2500.9,2500.4,3.99927597]
[1750431175203,11.32059562,2500.9,2500.4,3.99928167]
[1750431175405,11.4075106,2500.7,2500.3,3.99944169]
[1750431175617,11.4075106,2500.7,2500.3,4.39938586]
[1750431176006,11.4075106,2500.9,2500.3,0.39994417]
[1750431176222,0.8157,2501.5,2501.3,3.99788686]
[1750431176384,2.181,2501.6,2501.3,3.99788686]
[1750431176385,2.181,2501.6,2501.3,4.03778247]
[1750431176588,2.181,2501.6,2500.8,0.7623]
[1750431176898,15.44514021,2501.5,2501.1,3.99822446]
[1750431177111,15.40518302,2501.5,2501.1,3.99822446]
[1750431177297,0.03995719,2501.4,2501.1,3.99822486]
[1750431177512,11.4075106,2501.5,2501.1,3.99822486]
[1750431177713,11.4075106,2501.5,2501.2,3.99807033]
[1750431178142,11.4075106,2501.5,2501.3,3.99782792]
[1750431178342,7.271,2501.6,2501.3,0.79960051]
[1750431178515,10.0,2501.7,2501.4,3.99768471]
[1750431178715,10.0,2501.7,2501.3,3.99784726]
[1750431178912,11.4075106,2501.6,2500.8,0.7623]
[1750431179140,11.4075106,2501.6,2501.1,3.99817452]
[1750431179441,4.03762783,2501.5,2501.0,3.99832551]
[1750431179938,0.03995719,2501.5,2501.1,3.9982131]
[1750431180248,0.03995719,2501.5,2501.0,3.99829264]
[1750431180538,0.8174,2501.1,2500.5,0.7813]
[1750431180744,0.5328619,2501.4,2500.6,0.03998169]
[1750431180903,1.96214678,2501.5,2500.4,0.7813]
[1750431180904,11.4075106,2501.2,2500.4,0.7813]
[1750431181105,15.40635194,2500.8,2500.3,3.99945402]
[1750431181313,12.1725106,2500.8,2500.4,3.99934299]
[1750431181541,0.765,2500.8,2500.5,0.03998975]
[1750431181709,0.765,2500.8,2500.2,3.99966511]
[1750431181904,0.765,2500.8,2500.1,5.42929265]
[1750431182106,0.765,2501.4,2500.3,0.8197]
[1750431182305,14.76279588,2501.4,2500.9,3.9984886]
[1750431182502,10.765,2501.4,2500.5,11.29220015]
[1750431182706,10.765,2501.4,2501.1,3.99822544]
[1750431182901,10.0,2501.5,2501.1,0.03997904]
[1750431183142,3.99776947,2501.4,2500.7,0.8197]
[1750431183304,3.99799866,2501.3,2500.7,4.8185402]
[1750431183509,11.4075106,2501.4,2501.0,3.99832183]
[1750431183704,11.4075106,2501.4,2501.1,3.99823087]
[1750431184016,7.283,2501.5,2501.4,3.99776125]
[1750431184218,9.601,2502.2,2501.4,3.99776125]
[1750431184219,0.765,2502.0,2501.4,0.03997581]
[1750431184513,10.0,2502.1,2501.8,3.99708829]
[1750431184721,10.0,2502.1,2501.7,3.99719015]
[1750431184989,10.0,2502.1,2501.6,3.99731831]
[1750431185147,3.99724091,2501.8,2501.2,0.8197]
[1750431185346,11.4075106,2501.6,2500.9,0.8197]
[1750431185571,11.2766864,2501.5,2501.0,3.9983222]
[1750431185771,7.279,2501.5,2501.1,3.99816206]
[1750431185975,11.31664622,2501.5,2500.5,0.8197]
[1750431186134,7.279,2501.5,2500.6,1.02797]
[1750431186450,4.76277185,2501.4,2500.5,0.8197]
[1750431186645,11.4075106,2501.2,2500.8,3.99870308]
[1750431186852,18.6815106,2501.2,2500.6,3.99904023]
[1750431187032,11.4075106,2501.2,2500.5,0.85968356]
[1750431187234,7.269,2501.2,2500.6,0.48590212]
[1750431187568,0.765,2501.4,2501.1,3.99812434]
[1750431187771,7.269,2501.3,2500.8,3.99861685]
[1750431187948,11.2670123,2501.3,2500.8,3.9987141]
[1750431188146,15.40559639,2501.2,2500.8,3.9987141]
[1750431188351,3.99831458,2501.1,2500.5,0.8197]
[1750431188535,0.03995719,2501.1,2500.6,3.99893629]
[1750431188743,7.263,2501.0,2500.3,4.54238411]
[1750431189039,0.8127,2500.9,2500.5,3.99915219]
[1750431189384,0.8127,2500.9,2500.6,3.99901886]
[1750431189576,0.8127,2500.9,2500.5,3.99913538]
[1750431189881,11.4075106,2500.8,2500.3,0.54291537]
[1750431190040,11.4075106,2500.8,2500.4,3.99928498]
[1750431190377,11.4075106,2500.8,2500.3,0.03998965]
[1750431190576,11.4075106,2500.8,2500.4,3.9993025]
[1750431190777,11.4075106,2500.8,2500.5,3.99917011]
[1750431190976,11.4075106,2500.8,2500.4,3.99927399]
[1750431191146,11.4075106,2500.8,2500.5,3.99905399]
[1750431191494,11.250723,2500.8,2500.4,0.79987267]
[1750431191793,0.8009,2500.6,2499.6,4.0006401]
[1750431192002,11.4075106,2500.1,2499.5,0.8142]
[1750431192144,7.25,2500.2,2499.9,4.00002998]
[1750431192502,11.44746779,2500.1,2499.5,4.81486559]
[1750431192699,0.7657,2500.0,2499.6,4.00063705]
[1750431192903,7.248,2499.9,2499.7,0.33395311]
[1750431193076,11.28819338,2499.9,2499.7,0.33395311]
[1750431193279,4.04027721,2499.8,2499.7,0.33395311]
[1750431193466,14.04027721,2499.8,2499.7,0.33395311]
[1750431193664,17.57857136,2499.8,2499.1,2.60123967]
[1750431193863,0.8005,2499.4,2499.1,2.60123967]
[1750431194099,7.247,2499.3,2499.1,2.60123967]
[1750431194307,0.8005,2499.4,2499.1,2.6412511]
[1750431194513,0.8005,2499.4,2499.1,3.06143916]
[1750431194687,10.84045719,2499.4,2499.1,2.60123967]
[1750431194869,0.8005,2499.4,2499.3,4.00112031]
[1750431195071,8.0425,2499.4,2499.1,2.60123967]
[1750431195368,11.4075106,2499.9,2499.1,2.60123967]
[1750431195369,0.8005,2499.9,2499.8,4.00032002]
[1750431195593,10.8005,2500.3,2499.8,0.84007789]
[1750431195797,10.8005,2500.3,2500.0,3.99999298]
[1750431195998,14.8001172,2500.3,2499.6,4.00061108]
[1750431196214,10.8005,2500.3,2499.7,4.04041084]
[1750431196403,10.8005,2500.3,2499.3,4.00112031]
[1750431196628,10.0,2500.3,2500.2,3.99968002]
[1750431196912,8.0406,2500.6,2500.2,3.99960008]
[1750431197123,12.03966204,2500.6,2500.1,3.99976893]
[1750431197270,8.0406,2500.6,2499.6,4.00052892]